bitfinex/quotes_BTCUSD_20260310
["timestamp","ask_amount","ask_price","bid_price","bid_amount"]
[1773105739761,0.00074951,68975.0,68962.0,0.0739836]
[1773105739762,0.00074951,68975.0,68965.0,0.08004585]
[1773105739964,0.00074951,68975.0,68966.0,0.00452411]
[1773105740170,0.03048,68978.0,68966.0,0.00452411]
[1773105740373,0.03048,68978.0,68966.0,0.08004585]
[1773105740598,0.03048,68978.0,68967.0,0.00452411]
[1773105740801,0.00048,68978.0,68968.0,0.00600411]
[1773105741218,0.00022001,68972.0,68969.0,0.07249633]
[1773105741519,0.00048,68978.0,68970.0,0.00452411]
[1773105742109,0.00048,68978.0,68966.0,0.11565557]
[1773105742110,0.03,68974.0,68966.0,0.11565557]
[1773105742417,0.00479908,68973.0,68965.0,0.11565557]
[1773105742578,0.00479908,68973.0,68965.0,0.18815592]
[1773105744343,0.00479908,68973.0,68966.0,0.11565557]
[1773105745323,0.00479908,68973.0,68966.0,0.18815504]
[1773105745922,0.03,68973.0,68966.0,0.18815504]
[1773105746125,0.03,68973.0,68967.0,0.00452411]
[1773105746331,0.03,68973.0,68967.0,0.12017968]
[1773105746528,0.03,68973.0,68967.0,0.11565557]
[1773105746938,0.00048,68978.0,68967.0,0.11565557]
[1773105747526,0.00048,68978.0,68968.0,0.07249739]
[1773105749541,0.00022001,68974.0,68968.0,0.07249739]
[1773105749711,0.00022001,68974.0,68967.0,0.07249739]
[1773105750315,0.00022001,68974.0,68967.0,0.0770215]
[1773105753652,0.00022001,68974.0,68967.0,0.07249739]
[1773105754791,0.03022001,68974.0,68967.0,0.07249739]
[1773105755305,0.00048,68978.0,68967.0,0.07249739]
[1773105756549,0.00022001,68974.0,68967.0,0.07249739]
[1773105757042,0.00048,68978.0,68967.0,0.07249739]
[1773105757406,0.03048,68978.0,68967.0,0.07249739]
[1773105757734,0.07269984,68985.0,68967.0,0.07249739]
[1773105757735,0.00022001,68988.0,68975.0,0.17275988]
[1773105757936,0.07269646,68988.0,68976.0,0.00585468]
[1773105758258,0.07269646,68988.0,68977.0,0.07248793]
[1773105758644,0.03,68987.0,68977.0,0.07248793]
[1773105760434,0.10247775,68987.0,68977.0,0.07248793]
[1773105760637,0.00452289,68986.0,68977.0,0.07248793]
[1773105761074,0.03,68986.0,68977.0,0.07248793]
[1773105761496,0.03,68986.0,68976.0,0.07893787]
[1773105762052,0.03,68987.0,68976.0,0.07893787]
[1773105763013,0.03148,68989.0,68976.0,0.07396793]
[1773105763223,0.03148,68989.0,68977.0,0.00496994]
[1773105763424,0.00170001,68992.0,68980.0,0.0046711]
[1773105763631,0.00022001,68992.0,68980.0,0.00452168]
[1773105763992,0.03,68997.0,68982.0,0.00496994]
[1773105764196,0.03,68997.0,68985.0,0.07773591]
[1773105764418,0.00022001,68993.0,68986.0,0.00496994]
[1773105764620,0.10246703,68997.0,68987.0,0.07247742]
[1773105764840,0.07245722,69007.0,68987.0,0.07247742]
[1773105764841,0.00452289,69010.0,68992.0,0.07773591]
[1773105765172,0.07246766,69012.0,68995.0,0.07773591]
[1773105765173,0.00148,69012.0,68995.0,0.07773591]
[1773105765358,0.03,69016.0,69000.0,0.00496994]
[1773105765512,0.07244514,69018.0,68995.0,0.00011469]
[1773105765513,0.03,69014.0,68995.0,0.00011469]
[1773105765712,0.07244514,69018.0,69000.0,0.00148]
[1773105765713,0.00452289,69011.0,69000.0,0.00148]
[1773105766262,0.07271737,69021.0,69002.0,0.00496994]
[1773105766455,0.07271737,69021.0,69005.0,0.07773591]
[1773105766662,0.03,69020.0,69007.0,0.07245641]
[1773105766863,0.03452289,69020.0,69008.0,0.00148]
[1773105767062,0.09057992,69020.0,69008.0,0.00148]
[1773105767771,0.03452289,69020.0,69008.0,0.00148]
[1773105767978,0.00489776,69019.0,69007.0,0.07245641]
[1773105768197,0.00489776,69019.0,69008.0,0.00148]
[1773105768419,0.07271737,69021.0,69009.0,0.00461136]
[1773105769142,0.00660776,69025.0,69010.0,0.12851029]
[1773105769143,0.03,69023.0,69010.0,0.12851029]
[1773105769302,0.07291356,69029.0,69015.0,0.00461136]
[1773105769517,0.07291356,69029.0,69010.0,0.12851029]
[1773105769518,0.07291356,69029.0,69017.0,0.07977892]
[1773105769643,0.00048,69029.0,69018.0,0.00461136]
[1773105769844,0.08563738,69027.0,69011.0,0.00461136]
[1773105770116,0.03,69026.0,69013.0,0.00461136]
[1773105770266,0.03,69026.0,69009.0,0.07245422]
[1773105770267,0.00489776,69025.0,69009.0,0.07245422]
[1773105770496,0.00489776,69025.0,68989.0,0.20818987]
[1773105770497,0.00489776,69021.0,69000.0,0.00023]
[1773105770691,0.00489776,69021.0,68987.0,0.48171861]
[1773105770692,0.00489776,69021.0,68988.0,0.00461136]
[1773105770693,0.03,69007.0,68988.0,0.00461136]
[1773105770895,0.05605703,69010.0,68990.0,0.07247427]
[1773105770896,0.03,69001.0,68990.0,0.07247427]
[1773105771386,0.07246166,69002.0,68987.0,0.24483709]
[1773105771387,0.03,68999.0,68987.0,0.00148]
[1773105771597,0.03489776,68999.0,68987.0,0.00148]
[1773105771801,0.03,68999.0,68983.0,0.07275678]
[1773105772004,0.03,68992.0,68983.0,0.0002754]
[1773105772425,0.03,68992.0,68983.0,0.07275674]
[1773105772623,0.03,68992.0,68983.0,0.07313918]
[1773105773029,0.00148,68994.0,68983.0,0.07313918]
[1773105773030,0.03,68991.0,68983.0,0.07313918]
[1773105774014,0.03148,68994.0,68983.0,0.07313918]
[1773105774426,0.03148,68994.0,68983.0,0.07775054]
[1773105774805,0.03148,68994.0,68979.0,0.07977892]
[1773105774807,0.00489776,68991.0,68960.0,0.17301979]
[1773105775012,0.00489776,68991.0,68960.0,0.0002]
[1773105775013,0.10798045,68975.0,68960.0,0.0002]
[1773105775220,0.03,68973.0,68960.0,0.0002]
[1773105775441,0.00489776,68972.0,68961.0,0.00562]
[1773105777183,0.00489776,68969.0,68960.0,0.0002]
[1773105777762,0.10798045,68970.0,68960.0,0.0002]
[1773105777763,0.00489776,68967.0,68960.0,0.0002]
[1773105778083,0.00489776,68967.0,68955.0,0.0002]
[1773105778233,0.00489776,68967.0,68956.0,0.00562]
[1773105779397,0.03,68965.0,68961.0,0.0002]
[1773105779599,0.03,68963.0,68961.0,0.0002]
[1773105779897,0.00489776,68962.0,68961.0,0.0002]
[1773105781892,0.07249137,68974.0,68962.0,0.00562]
[1773105782232,0.07244986,68976.0,68964.0,0.00461136]
[1773105782365,0.00489776,68975.0,68962.0,0.00562]
[1773105782799,0.00489776,68974.0,68962.0,0.00562]
[1773105783015,0.00489776,68974.0,68962.0,0.0071]
[1773105783392,0.03,68975.0,68963.0,0.08599031]
[1773105783776,0.03,68973.0,68964.0,0.07250159]
[1773105783999,0.07244986,68976.0,68964.0,0.07250159]
[1773105784000,0.11464368,69001.0,68965.0,0.08137895]
[1773105784233,0.00148,68982.0,68967.0,0.08599031]
[1773105784381,0.07704239,68977.0,68957.0,0.00148]
[1773105784591,0.00489776,68973.0,68957.0,0.00148]
[1773105784835,0.00489776,68972.0,68957.0,0.00148]
[1773105785938,0.03,68970.0,68958.0,0.0725079]
[1773105786143,0.03637776,68970.0,68958.0,0.0725079]
[1773105786388,0.00489776,68969.0,68958.0,0.0725079]
[1773105786792,0.00489776,68969.0,68963.0,0.0002]
[1773105787605,0.03148,68970.0,68963.0,0.0002]
[1773105788468,0.03,68968.0,68963.0,0.0002]
[1773105789496,0.03,68969.0,68963.0,0.0002]
[1773105789697,0.03,68969.0,68963.0,0.00016]
[1773105790071,0.07249549,68970.0,68963.0,0.00016]
[1773105790368,0.07397126,68974.0,68963.0,0.00016]
[1773105790568,0.00466265,68972.0,68963.0,0.00016]
[1773105798210,0.07715607,68972.0,68963.0,0.00016]
[1773105798464,0.03,68971.0,68963.0,0.00016]
[1773105802211,0.03,68970.0,68963.0,0.00016]
[1773105802844,0.07704239,68981.0,68966.0,0.08137895]
[1773105802845,0.07248579,68980.0,68966.0,0.08137895]
[1773105803126,0.00466265,68979.0,68968.0,0.07249731]
[1773105803321,0.03466265,68979.0,68966.0,0.07249865]
[1773105805705,0.07270321,68982.0,68968.0,0.00478425]
[1773105805706,0.00022001,68982.0,68968.0,0.00478425]
[1773105805848,0.00148,68981.0,68970.0,0.0861632]
[1773105806048,0.07418298,68982.0,68970.0,0.0861632]
[1773105806489,0.07270298,68982.0,68970.0,0.0861632]
[1773105806697,0.03,68981.0,68970.0,0.0861632]
[1773105807607,0.07247828,68987.0,68973.0,0.07249213]
[1773105807608,0.00148,68987.0,68973.0,0.07249213]
[1773105807811,0.00148,68987.0,68975.0,0.08137895]
[1773105808435,0.00148,68987.0,68975.0,0.0861632]
[1773105808822,0.03148,68987.0,68975.0,0.0861632]
[1773105809025,0.00148,68990.0,68978.0,0.00478425]
[1773105809812,0.00148,68990.0,68979.0,0.07248582]
[1773105810236,0.03,68993.0,68981.0,0.00478425]
[1773105810432,0.00022001,68996.0,68985.0,0.08137895]
[1773105810654,0.00022001,68996.0,68982.0,0.00148]
[1773105810655,0.00022001,68996.0,68987.0,0.0861632]
[1773105811617,0.00022001,68996.0,68987.0,0.00478425]
[1773105812171,0.00022001,68996.0,68987.0,0.07726147]
[1773105813086,0.03,68995.0,68987.0,0.07726154]
[1773105814022,0.00022001,68996.0,68987.0,0.07726154]
[1773105814195,0.03,68997.0,68989.0,0.00478425]
[1773105814746,0.00148,69000.0,68991.0,0.00478425]
[1773105814879,0.00562,69004.0,68993.0,0.00478425]
[1773105815075,0.07244563,69018.0,68987.0,0.07247729]
[1773105815076,0.10245219,69012.0,68996.0,0.0818687]
[1773105815290,0.10245219,69012.0,68999.0,0.00478425]
[1773105815291,0.00148,69011.0,68999.0,0.00478425]
[1773105815491,0.00466265,69010.0,68991.0,0.00478425]
[1773105815847,0.00022001,69002.0,68994.0,0.00478425]
[1773105816029,0.00022001,69002.0,68994.0,0.08665295]
[1773105816236,0.00022001,69002.0,68995.0,0.07725326]
[1773105818350,0.0739359,69008.0,68995.0,0.07725326]
[1773105818351,0.03,69006.0,68998.0,0.0818687]
[1773105818843,0.03,69006.0,68995.0,0.07246901]
[1773105819039,0.03,69006.0,68995.0,0.07725326]
[1773105819215,0.03,69005.0,68995.0,0.15433771]
[1773105819424,0.03,69005.0,68996.0,0.00474057]
[1773105819830,0.03,69005.0,68997.0,0.08660927]
[1773105820151,0.00148,69008.0,68999.0,0.0818687]
[1773105820474,0.08779267,69023.0,69002.0,0.0818687]
[1773105820709,0.07243857,69024.0,69004.0,0.0818687]
[1773105820901,0.00499193,69023.0,69006.0,0.00474057]
[1773105821178,0.00499193,69022.0,69006.0,0.00474057]
[1773105821403,0.00148,69021.0,69006.0,0.00474057]
[1773105821596,0.00499193,69020.0,69006.0,0.00474057]
[1773105821794,0.00647193,69020.0,69007.0,0.00474057]
[1773105822013,0.00011464,69021.0,69005.0,0.00148]
[1773105822014,0.00011464,69021.0,69008.0,0.0818687]
[1773105822206,0.00011464,69021.0,69011.0,0.08660927]
[1773105822407,0.00011464,69021.0,69012.0,0.07245116]
[1773105822610,0.00045001,69025.0,69014.0,0.00474057]
[1773105822857,0.0728877,69025.0,69014.0,0.00011464]
[1773105822999,0.00022001,69021.0,69014.0,0.00011464]
[1773105824517,0.03499193,69020.0,69014.0,0.00011464]
[1773105824720,0.03499193,69020.0,69012.0,0.00148]
[1773105824926,0.03510651,69020.0,69012.0,0.00148]
[1773105825350,0.03510651,69020.0,69012.0,0.07393114]
[1773105825553,0.03,69019.0,69012.0,0.07393114]
[1773105825766,0.00499193,69018.0,69006.0,0.07245746]
[1773105825961,0.00499193,69018.0,69007.0,0.00148]
[1773105826364,0.00499193,69018.0,69002.0,0.07246162]
[1773105826691,0.00499193,69018.0,68998.0,0.07394511]
[1773105826692,0.00499193,69013.0,68998.0,0.07394511]
[1773105826899,0.00499193,69012.0,68998.0,0.07394511]
[1773105827110,0.00499193,69012.0,68998.0,0.16055438]
[1773105827787,0.03148,69013.0,68999.0,0.00474057]
[1773105829184,0.03,69011.0,69000.0,0.07246376]
[1773105829589,0.03,69011.0,69000.0,0.07720433]
[1773105830089,0.03,69010.0,69000.0,0.07720433]
[1773105831128,0.03,69009.0,69000.0,0.07720433]
[1773105831716,0.03,69009.0,69000.0,0.07246376]
[1773105831930,0.03,69009.0,68994.0,0.08622272]
[1773105831931,0.00461726,69008.0,68989.0,0.00458572]
[1773105832174,0.00461726,69005.0,68989.0,0.00458572]
[1773105832391,0.00461726,69005.0,68990.0,0.00148]
[1773105833218,0.03,69003.0,68991.0,0.07247322]
[1773105833823,0.03,69003.0,68993.0,0.00458572]
[1773105834083,0.07245116,69012.0,68996.0,0.08622272]
[1773105834284,0.07245116,69012.0,68999.0,0.00458572]
[1773105834285,0.03,69011.0,68999.0,0.00458572]
[1773105834969,0.00148,69012.0,69001.0,0.00458572]
[1773105835261,0.00022001,69013.0,69003.0,0.07246061]
[1773105835587,0.001,69011.0,69003.0,0.07246061]
[1773105836069,0.03,69012.0,69003.0,0.07246061]
[1773105840389,0.03022001,69012.0,69003.0,0.07246061]
[1773105841144,0.07294355,69013.0,69004.0,0.08622272]
[1773105841145,0.00049331,69013.0,69004.0,0.08622272]
[1773105841347,0.00022001,69019.0,69004.0,0.08622272]
[1773105841348,0.00022001,69019.0,69008.0,0.00458572]
[1773105841527,0.07266385,69019.0,69008.0,0.00458572]
[1773105841748,0.00022001,69019.0,69008.0,0.00458572]
[1773105842150,0.10414401,69019.0,69008.0,0.00458572]
[1773105842355,0.03170001,69019.0,69008.0,0.00458572]
[1773105842588,0.03022001,69019.0,69009.0,0.08622272]
[1773105842792,0.03022001,69019.0,69011.0,0.08622272]
[1773105842994,0.03022001,69019.0,69012.0,0.00458572]
[1773105843196,0.03022001,69019.0,69008.0,0.00148]
[1773105843197,0.00461726,69017.0,69008.0,0.00148]
[1773105843432,0.03461726,69015.0,69008.0,0.00148]
[1773105844210,0.03461726,69015.0,69004.0,0.07245924]
[1773105845941,0.03461726,69015.0,69004.0,0.07238086]
[1773105846174,0.10706542,69015.0,69004.0,0.07238086]
[1773105846460,0.03,69014.0,69004.0,0.07238086]
[1773105847544,0.03,69013.0,69004.0,0.07238086]
[1773105848515,0.03,69012.0,69004.0,0.07258086]
[1773105849472,0.03,69011.0,69004.0,0.07258086]
[1773105850476,0.03,69010.0,69004.0,0.07258086]
[1773105850867,0.00631727,69015.0,69004.0,0.07258086]
[1773105851148,0.00148,69015.0,69005.0,0.08681578]
[1773105851356,0.00148,69015.0,69006.0,0.00483873]
[1773105851950,0.00148,69015.0,69004.0,0.07258086]
[1773105852572,0.00148,69015.0,69005.0,0.09165451]
[1773105854269,0.00148,69015.0,69006.0,0.07245746]
[1773105854465,0.03,69017.0,69006.0,0.07245746]
[1773105854708,0.00022001,69021.0,69008.0,0.00483873]
[1773105854856,0.00022001,69021.0,69010.0,0.08681578]
[1773105855060,0.00022001,69021.0,69013.0,0.00483873]
[1773105855257,0.00022001,69021.0,69013.0,0.09165451]
[1773105855665,0.00022001,69021.0,69013.0,0.08681578]
[1773105855868,0.00022001,69021.0,69014.0,0.00483873]
[1773105856074,0.00022001,69021.0,69015.0,0.00483873]
[1773105856296,0.00045001,69025.0,69016.0,0.07244696]
[1773105856496,0.07805083,69032.0,69018.0,0.00483873]
[1773105856497,0.00562,69032.0,69018.0,0.00483873]
[1773105856715,0.00562,69032.0,69021.0,0.08681578]
[1773105856917,0.00562,69032.0,69021.0,0.09165451]
[1773105857316,0.00467146,69030.0,69016.0,0.07244696]
[1773105858038,0.00467146,69030.0,69016.0,0.07728569]
[1773105858620,0.00562,69032.0,69017.0,0.00483873]
[1773105859442,0.03562,69032.0,69017.0,0.00483873]
[1773105860255,0.03562,69032.0,69017.0,0.09165451]
[1773105860456,0.0303111,69031.0,69018.0,0.07244486]
[1773105861480,0.03,69030.0,69018.0,0.07244486]
[1773105862561,0.03,69029.0,69018.0,0.07244486]
[1773105863374,0.03467146,69029.0,69018.0,0.07244486]
[1773105863557,0.00467146,69028.0,69015.0,0.07244718]
[1773105863759,0.00467146,69028.0,69017.0,0.00148]
[1773105863964,0.00467146,69028.0,69017.0,0.00140162]
[1773105864166,0.00467146,69028.0,69017.0,0.00132324]
[1773105864391,0.00467146,69028.0,69016.0,0.00148]
[1773105864955,0.03467146,69028.0,69017.0,0.07244591]
[1773105865134,0.03,69028.0,69017.0,0.07244591]
[1773105865334,0.00467146,69027.0,69017.0,0.07236753]
[1773105866185,0.03467146,69027.0,69017.0,0.07236753]
[1773105866805,0.03467146,69027.0,69013.0,0.07244998]
[1773105867009,0.03467146,69027.0,69014.0,0.00148]
[1773105867406,0.03,69026.0,69015.0,0.00148]
[1773105867812,0.03,69026.0,69013.0,0.07244998]
[1773105868019,0.03,69026.0,69014.0,0.00148]
[1773105868219,0.00467146,69027.0,69014.0,0.00148]
[1773105868422,0.00467146,69027.0,69015.0,0.00148]
[1773105868825,0.00467146,69027.0,69013.0,0.07244998]
[1773105869052,0.00467146,69027.0,69014.0,0.00148]
[1773105869549,0.00467146,69027.0,69015.0,0.00148]
[1773105869973,0.00467146,69026.0,69013.0,0.07392998]
[1773105870540,0.00467146,69026.0,69013.0,0.07244998]
[1773105870738,0.00467146,69026.0,69013.0,0.07392998]
[1773105871109,0.00467146,69026.0,69013.0,0.00148]
[1773105871845,0.03467146,69026.0,69013.0,0.00148]
[1773105872050,0.03467146,69026.0,69012.0,0.15926589]
[1773105872211,0.03,69026.0,69015.0,0.00483873]
[1773105872561,0.00148,69026.0,69023.0,0.00483873]
[1773105873541,0.00022001,69029.0,69023.0,0.00483873]
[1773105873798,0.00148,69030.0,69023.0,0.09101314]
[1773105873925,0.00148,69030.0,69020.0,0.07244257]
[1773105874266,0.00467146,69028.0,69019.0,0.00148]
[1773105874473,0.03,69029.0,69013.0,0.0002]
[1773105874474,0.00467146,69024.0,69013.0,0.0002]
[1773105874706,0.03467146,69022.0,69013.0,0.0002]
[1773105875035,0.03,69022.0,69013.0,0.0002]
[1773105875237,0.10244075,69022.0,69013.0,0.0002]
[1773105875657,0.00467146,69021.0,69013.0,0.0002]
[1773105876465,0.03,69022.0,69013.0,0.0002]
[1773105876723,0.03,69021.0,69014.0,0.00483873]
[1773105876861,0.03,69021.0,69014.0,0.08617441]
[1773105877066,0.07243441,69028.0,69017.0,0.08617441]
[1773105877271,0.00148,69028.0,69020.0,0.00483873]
[1773105877935,0.00148,69028.0,69021.0,0.09101314]
[1773105878134,0.03,69030.0,69023.0,0.09101314]
[1773105878799,0.00053111,69031.0,69023.0,0.09101314]
[1773105879265,0.00053111,69031.0,69023.0,0.1634527]
[1773105880981,0.00201111,69031.0,69022.0,0.07244066]
[1773105881199,0.03,69030.0,69022.0,0.07244066]
[1773105882342,0.03,69030.0,69020.0,0.07244205]
[1773105883909,0.03022001,69030.0,69020.0,0.07244205]
[1773105884587,0.03022001,69030.0,69019.0,0.07760312]
[1773105884588,0.0045105,69029.0,69019.0,0.0002]
[1773105884991,0.0045105,69029.0,69019.0,0.07264376]
[1773105885533,0.0045105,69029.0,69019.0,0.0002]
[1773105885735,0.0045105,69026.0,69013.0,0.07264956]
[1773105885934,0.0045105,69024.0,69013.0,0.07264956]
[1773105886741,0.03,69022.0,69013.0,0.0002]
[1773105887871,0.03,69021.0,69013.0,0.0002]
[1773105888019,0.03,69021.0,69014.0,0.00496035]
[1773105888931,0.00022001,69030.0,69016.0,0.08617441]
[1773105889139,0.00148,69029.0,69019.0,0.00496035]
[1773105890077,0.03148,69029.0,69019.0,0.00496035]
[1773105891273,0.03,69028.0,69021.0,0.08617441]
[1773105891555,0.03,69028.0,69022.0,0.09113476]
[1773105892387,0.03,69027.0,69022.0,0.09113476]
[1773105892983,0.03,69027.0,69022.0,0.00496035]
[1773105893330,0.03,69027.0,69023.0,0.07243962]
[1773105893480,0.03,69026.0,69023.0,0.07243962]
[1773105893903,0.03,69026.0,69022.0,0.07244058]
[1773105894550,0.03,69025.0,69022.0,0.07244058]
[1773105895133,0.03,69025.0,69019.0,0.16728431]
[1773105895517,0.00022001,69029.0,69019.0,0.16728431]
[1773105898248,0.00046201,69029.0,69019.0,0.16728431]
[1773105898585,0.00046201,69029.0,69019.0,0.0773077]
[1773105900356,0.07289569,69029.0,69019.0,0.07249432]
[1773105900574,0.07289569,69029.0,69013.0,0.0002]
[1773105900575,0.09009232,69026.0,69013.0,0.0002]
[1773105900707,0.09009232,69026.0,69006.0,0.0002]
[1773105900708,0.00482368,69021.0,69006.0,0.0002]
[1773105900908,0.03482368,69017.0,69007.0,0.07245575]
[1773105901111,0.03482368,69017.0,69008.0,0.07256972]
[1773105901556,0.07244696,69016.0,69008.0,0.00011458]
[1773105901891,0.03,69015.0,69008.0,0.00011458]
[1773105902333,0.03,69015.0,69013.0,0.0002]
[1773105904359,0.10244806,69015.0,69013.0,0.0002]
[1773105904604,0.03482368,69015.0,69013.0,0.0002]
[1773105905175,0.07244598,69017.0,69013.0,0.0002]
[1773105905603,0.07392279,69020.0,69013.0,0.0002]
[1773105905858,0.07243822,69025.0,69014.0,0.09043361]
[1773105906020,0.07243743,69026.0,69016.0,0.00481338]
[1773105906231,0.07243743,69026.0,69013.0,0.0002]
[1773105906232,0.03,69026.0,69017.0,0.09043361]
[1773105906436,0.030242,69024.0,69018.0,0.00481338]
[1773105906607,0.030242,69024.0,69017.0,0.09043361]
[1773105907599,0.030242,69024.0,69018.0,0.07244486]
[1773105907803,0.03,69023.0,69017.0,0.16287927]
[1773105908631,0.07265391,69029.0,69019.0,0.09043361]
[1773105908632,0.00148,69028.0,69019.0,0.09043361]
[1773105908839,0.00148,69028.0,69020.0,0.00481338]
[1773105909116,0.07265148,69031.0,69020.0,0.00481338]
[1773105909312,0.00148,69029.0,69020.0,0.00481338]
[1773105909701,0.00148,69029.0,69021.0,0.07244172]
[1773105910145,0.03,69030.0,69021.0,0.07244172]
[1773105910334,0.00022001,69029.0,69021.0,0.07244172]
[1773105910920,0.03022001,69029.0,69021.0,0.16742261]
[1773105911703,0.03022001,69029.0,69021.0,0.07244172]
[1773105911868,0.10265367,69029.0,69019.0,0.07244295]
[1773105913266,0.10265367,69029.0,69018.0,0.07244279]
[1773105913267,0.10740404,69029.0,69018.0,0.07244381]
[1773105913994,0.10740404,69029.0,69017.0,0.0002]
[1773105914537,0.03497038,69029.0,69017.0,0.0002]
[1773105914740,0.03022001,69029.0,69017.0,0.0002]
[1773105914944,0.03022001,69029.0,69017.0,0.00474728]
[1773105915512,0.03,69028.0,69019.0,0.00454728]
[1773105916419,0.03022001,69029.0,69020.0,0.07244277]
[1773105917059,0.10265352,69029.0,69020.0,0.07244277]
[1773105917428,0.03022001,69029.0,69020.0,0.07244277]
[1773105919566,0.00022001,69028.0,69020.0,0.07244277]
[1773105919930,0.07243259,69030.0,69022.0,0.00454728]
[1773105920345,0.07243259,69030.0,69020.0,0.07244277]
[1773105921408,0.12845636,69030.0,69019.0,0.07244277]
[1773105922024,0.12845636,69030.0,69018.0,0.07244465]
[1773105922392,0.03,69027.0,69013.0,0.0002]
[1773105922595,0.03,69022.0,69013.0,0.07264983]
[1773105922807,0.03,69022.0,69013.0,0.0002]
[1773105923150,0.00475037,69021.0,69013.0,0.0002]
[1773105923637,0.03,69019.0,69013.0,0.0002]
[1773105925252,0.03,69018.0,69015.0,0.00454728]
[1773105925424,0.03,69018.0,69014.0,0.09043361]
[1773105925757,0.03,69018.0,69013.0,0.07264984]
[1773105926055,0.03,69018.0,69013.0,0.0002]
[1773105926252,0.03,69017.0,69013.0,0.0002]
[1773105927332,0.10244386,69019.0,69013.0,0.0002]
[1773105929385,0.00022001,69017.0,69013.0,0.0002]
[1773105930994,0.07244128,69022.0,69014.0,0.09043361]
[1773105931200,0.07244128,69022.0,69015.0,0.09498089]
[1773105931696,0.07244128,69022.0,69015.0,0.09043361]
[1773105931913,0.00022001,69024.0,69016.0,0.00454728]
[1773105932128,0.03,69025.0,69018.0,0.09498089]
[1773105932330,0.07243449,69028.0,69019.0,0.00454728]
[1773105932472,0.07243449,69028.0,69021.0,0.00454728]
[1773105933178,0.03,69027.0,69020.0,0.09043361]
[1773105934352,0.03,69027.0,69021.0,0.09196352]
[1773105934609,0.00022001,69031.0,69023.0,0.08741624]
[1773105934812,0.00022001,69031.0,69024.0,0.08741624]
[1773105935012,0.00148,69034.0,69027.0,0.08741624]
[1773105935220,0.05602377,69040.0,69027.0,0.08741624]
[1773105935221,0.07242065,69042.0,69027.0,0.08741624]
[1773105935430,0.07242065,69042.0,69030.0,0.00454728]
[1773105935582,0.03,69041.0,69031.0,0.09196352]
[1773105936023,0.03,69041.0,69032.0,0.00454728]
[1773105936209,0.03,69041.0,69034.0,0.08741624]
[1773105936413,0.03,69041.0,69035.0,0.0769743]
[1773105936611,0.03,69040.0,69036.0,0.09196352]
[1773105937448,0.03,69040.0,69037.0,0.00454728]
[1773105937657,0.00148,69045.0,69037.0,0.08741624]
[1773105937879,0.00156301,69045.0,69037.0,0.09196352]
[1773105938113,0.07240784,69054.0,69037.0,0.09196352]
[1773105938114,0.0726096,69058.0,69037.0,0.08741624]
[1773105938235,0.0726096,69058.0,69041.0,0.08741624]
[1773105938438,0.0726096,69058.0,69043.0,0.00454728]
[1773105938707,0.03,69057.0,69043.0,0.00454728]
[1773105939039,0.03,69052.0,69041.0,0.07242049]
[1773105939240,0.03,69052.0,69042.0,0.00148]
[1773105939547,0.03,69052.0,69041.0,0.07242049]
[1773105939745,0.03,69052.0,69042.0,0.00148]
[1773105940154,0.03,69057.0,69045.0,0.00470299]
[1773105940352,0.10240411,69057.0,69049.0,0.00470299]
[1773105940765,0.10240411,69057.0,69048.0,0.07241339]
[1773105940978,0.10240411,69057.0,69045.0,0.07241565]
[1773105942368,0.00562,69060.0,69047.0,0.07241444]
[1773105942564,0.00562,69060.0,69050.0,0.00470299]
[1773105943102,0.00562,69060.0,69048.0,0.00148]
[1773105943103,0.00562,69060.0,69052.0,0.00470299]
[1773105943300,0.00022001,69058.0,69052.0,0.00470299]
[1773105944717,0.03022001,69058.0,69048.0,0.00618299]
[1773105944939,0.00466362,69057.0,69048.0,0.00148]
[1773105945348,0.10262394,69058.0,69043.0,0.00470299]
[1773105945553,0.10262394,69058.0,69044.0,0.00148]
[1773105945850,0.00466362,69057.0,69043.0,0.00470299]
[1773105946016,0.00466362,69057.0,69045.0,0.00148]
[1773105946439,0.03,69057.0,69047.0,0.08741624]
[1773105946780,0.0780229,69060.0,69052.0,0.00470299]
[1773105946979,0.07240293,69058.0,69052.0,0.00470299]
[1773105947181,0.07240185,69059.0,69052.0,0.00470299]
[1773105947404,0.00562,69060.0,69052.0,0.00470299]
[1773105947768,0.07239667,69064.0,69053.0,0.00470299]
[1773105948619,0.03,69063.0,69053.0,0.00470299]
[1773105949087,0.03,69061.0,69055.0,0.00470299]
[1773105949226,0.00022001,69065.0,69055.0,0.00470299]
[1773105950266,0.03022001,69065.0,69055.0,0.00470299]
[1773105950688,0.0740224,69069.0,69054.0,0.0724071]
[1773105950689,0.00015,69069.0,69056.0,0.08741624]
[1773105950905,0.07238627,69074.0,69052.0,0.0738871]
[1773105950906,0.07238627,69074.0,69060.0,0.07240081]
[1773105951133,0.07261531,69075.0,69062.0,0.00470299]
[1773105951345,0.0071,69088.0,69063.0,0.00470299]
[1773105951548,0.0071,69088.0,69061.0,0.00148]
[1773105951549,0.00562,69088.0,69071.0,0.00470299]
[1773105951803,0.07799189,69088.0,69073.0,0.00470299]
[1773105952025,0.00061359,69083.0,69073.0,0.00470299]
[1773105952449,0.00022001,69079.0,69073.0,0.00470299]
[1773105953059,0.00022001,69079.0,69075.0,0.00470299]
[1773105953263,0.00061359,69083.0,69075.0,0.00470299]
[1773105953486,0.07236738,69092.0,69074.0,0.07238613]
[1773105953487,0.10236506,69095.0,69078.0,0.08741624]
[1773105953750,0.10236506,69095.0,69082.0,0.00470299]
[1773105953751,0.03011458,69095.0,69082.0,0.00470299]
[1773105953961,0.03011458,69095.0,69083.0,0.00470299]
[1773105954189,0.0002314,69096.0,69083.0,0.00470299]
[1773105954404,0.00023,69100.0,69085.0,0.0045424]
[1773105954621,0.00023,69100.0,69087.0,0.0045424]
[1773105955061,0.07235352,69106.0,69091.0,0.0045424]
[1773105955262,0.07235352,69106.0,69092.0,0.00148]
[1773105955482,0.09582657,69105.0,69092.0,0.00148]
[1773105955702,0.03,69104.0,69060.0,0.00562]
[1773105955930,0.07235352,69106.0,69083.0,0.07393103]
[1773105955931,0.03,69097.0,69083.0,0.07393103]
[1773105956117,0.12101535,69097.0,69083.0,0.07847343]
[1773105956329,0.12101535,69097.0,69084.0,0.0045424]
[1773105956330,0.03,69097.0,69084.0,0.0045424]
[1773105956579,0.03,69097.0,69086.0,0.0045424]
[1773105957041,0.03,69099.0,69087.0,0.07237251]
[1773105957373,0.03,69099.0,69087.0,0.07691491]
[1773105957573,0.03,69099.0,69088.0,0.0045424]